Cogmind - Beta 14 @@@ ROGUE MODE // 2024.09.17 @ 17:30:18 Player: rice Result: Destroyed by as-57013 with Assembled Maul Performance ------------- Evolutions (0) 0 Regions Visited (3) 600 Robots Destroyed (27) 135 Value Destroyed (513) 513 Prototype IDs (2) 40 Alien Tech Used (0) 0 Bonus (0) 0 TOTAL SCORE: 1288 Bonus ------- None Cogmind --------- Core Integrity 0/250 Matter 272/300 Energy 265/265 System Corruption 2% Temperature Cool (0) Movement Core (900) Ox17 Location -10/Exiles Parts ------- > --- POWER (1) -------- Improved Ion Engine > --- PROPULSION (2) --- (None) > --- UTILITY (2) ------ High-capacity Storage Unit Structural Scanner > --- WEAPON (2) ------- Light Assault Rifle Heavy Assault Rifle > --- INVENTORY (20) --- Ion Engine Light Treads Light Treads Light Treads Light Treads Light Treads Aluminum Leg Aluminum Leg Aluminum Leg Heat Sink Improved Heat Sink Huge Storage Unit Structural Scanner Targeting Computer Utility Shielding Light Armor Plating Light Armor Plating Light Armor Plating Light Armor Plating Grenade Launcher Peak State ------------ > --- POWER ------------ Improved Ion Engine > --- PROPULSION ------- Aluminum Leg Aluminum Leg > --- UTILITY ---------- High-capacity Storage Unit Structural Scanner > --- WEAPON ----------- Light Assault Rifle Heavy Assault Rifle > --- INVENTORY -------- Ion Engine Light Treads Light Treads Light Treads Light Treads Light Treads Aluminum Leg Aluminum Leg Aluminum Leg Heat Sink Improved Heat Sink Huge Storage Unit Structural Scanner Signal Interpreter Targeting Computer Light Armor Plating Light Armor Plating Light Armor Plating Light Armor Plating Grenade Launcher [Rating: 11] Favorites ----------- Power Ion Engine Engine Ion Engine Propulsion Aluminum Leg Leg Aluminum Leg Utility High-capacity Storage Unit Device Structural Scanner Storage High-capacity Storage Unit Weapon Assault Rifle Energy Gun Medium Laser Ballistic Gun Assault Rifle Launcher Grenade Launcher Build | -11 -10 -10 -10 ------- Run | Yrd Mat Min Exi Slots Evolved . | . . . . Power . | . . . . Propulsion . | . . . . Utility . | . . . . Weapon . | . . . . Parts Attached 29 | 6 17 6 . Power 4 | 1 1 2 . Engine 4 | 1 1 2 . Core . | . . . . Reactor . | . . . . Propulsion 9 | 2 7 . . Treads . | . . . . Leg 9 | 2 7 . . Wheel . | . . . . Hover . | . . . . Flight . | . . . . Utility 5 | 1 4 . . Device 2 | . 2 . . Storage 3 | 1 2 . . Processor . | . . . . Hackware . | . . . . Protection . | . . . . Artifact . | . . . . Weapon 11 | 2 5 4 . Energy Gun 4 | 1 2 1 . Energy Cannon . | . . . . Ballistic Gun 6 | 1 2 3 . Ballistic Cannon . | . . . . Launcher 1 | . 1 . . Special Weapon . | . . . . Impact Weapon . | . . . . Slashing Weapon . | . . . . Piercing Weapon . | . . . . Special Melee Weapon . | . . . . Unidentified Prototypes . | . . . . Parts Lost 6 | . 1 3 2 Power 1 | . . 1 . Propulsion 2 | . . . 2 Utility . | . . . . Weapon 3 | . 1 2 . Highest Loss Streak 3 | . 1 3 2 To Critical Strikes . | . . . . Average Slot Usage (%) 98 | . 98 95 100 Engine 13 | . 14 13 14 Leg 28 | . 28 28 28 Device 13 | . 12 14 14 Storage 14 | . 14 14 14 Energy Gun 11 | . 14 6 . Ballistic Gun 15 | . 13 17 28 Peak Build Rating 11 | 6 9 11 11 Average Rating 8 | 4 7 9 10 On Entrance 6 | . 6 9 11 Naked Turns . | . . . . Heaviest Build 54 | 14 54 52 52 Greatest Support 20 | 20 20 20 20 Greatest Overweight (x) 5 | 4 2 2 5 Average Overweight (x) 1 | . 1 2 2 Largest Inventory Capacity 20 | 8 20 20 20 Average Capacity 19 | 7 19 20 20 Most Carried 20 | 4 20 20 20 Average Carried 16 | 2 14 19 20 Final Capacity 20 | 8 20 20 20 Final Carried 20 | 4 20 20 20 Class Distribution -------------------- 79% | Mutant 20% | Scavenger-Mutant Dominant Class ---------------- Mutant | -10/Materials Mutant | -10/Mines Mutant | -10/Exiles Resources | -11 -10 -10 -10 ----------- Run | Yrd Mat Min Exi Matter Collected 679 | 242 332 105 . Remotely . | . . . . Salvage Created 709 | . 480 229 . Parts 52 | . 36 16 . Haulers Intercepted 1 | . 1 . . Recyclers Shooed . | . . . . Parts Field Recycled . | . . . . Retrieved Matter . | . . . . Parts Self-Destructed . | . . . . Prevented . | . . . . Kills | -11 -10 -10 -10 ------- Run | Yrd Mat Min Exi Combat Hostiles Destroyed 20 | . 13 7 . Guns 17 | . 10 7 . AOE 3 | . 3 . . Classes Destroyed 8 | . 7 1 . Builder 1 | . 1 . . Hauler 1 | . 1 . . Recycler 1 | . 1 . . Operator 1 | . 1 . . Watcher 3 | . 3 . . Swarmer 13 | . 9 4 . Grunt 5 | . 4 1 . Sentry 2 | . . 2 . Best Kill Streak 6 | . 6 2 . Combat Bots Only 3 | . 3 2 . Max Kills in Single Turn 3 | . 3 1 . Gunslinging . | . . . . Exploded 2 | . 2 . . Melee . | . . . . Uniques/NPCs Destroyed . | . . . . Combat | -11 -10 -10 -10 -------- Run | Yrd Mat Min Exi Hostile Shots Fired 133 | . 67 39 27 Missed 26 | . 11 7 8 Damage Taken 1381 | . 614 435 332 Core 261 | . 65 86 110 Absorbed by Shields . | . . . . Regen/Repaired (Parts) 93 | . 93 . . Core Remaining (%) 100 | 100 . . . Volleys Fired 62 | . 45 17 . Largest 2 | . 2 2 . Hottest 70 | . 70 60 . Shots Fired 119 | . 88 30 1 Gun 117 | . 86 30 1 Cannon . | . . . . Launcher 2 | . 2 . . Special . | . . . . Kinetic 67 | . 43 23 1 Thermal 35 | . 35 . . Explosive 2 | . 2 . . Electromagnetic 15 | . 8 7 . Robot Hit Streak 9 | . 8 9 2 Robot Miss Streak 4 | . 4 2 . Penetration Max . | . . . . Secondary Targets 1 | . 1 . . Max Gunslinging Chain 1 | . 1 . . Shots Hit Robots 72 | . 48 23 1 Core Hits 39 | . 28 11 . Critical Kills . | . . . . Critical Parts Destroyed . | . . . . Critical Strikes 5 | . 4 1 . Burn 4 | . 4 . . Corrupt 1 | . . 1 . Melee Attacks . | . . . . Impact . | . . . . Slashing . | . . . . Piercing . | . . . . Sneak Attacks . | . . . . Combat Hostiles . | . . . . Follow-up Attacks . | . . . . Damage Inflicted 1084 | . 837 229 18 Guns 870 | . 623 229 18 Cannons . | . . . . Explosions 202 | . 202 . . Melee . | . . . . Ramming 12 | . 12 . . Kinetic 466 | . 293 155 18 Thermal 354 | . 354 . . Explosive 158 | . 158 . . Electromagnetic 94 | . 20 74 . Impact . | . . . . Slashing . | . . . . Piercing . | . . . . Highest Corruption 2 | . 2 2 2 Average Corruption 2 | . 2 2 2 Corruption Purged . | . . . . Corruption Blocked . | . . . . Effects 34 | . 17 12 5 Message Errors 11 | . 7 3 1 Matter Fused 9 | . 3 4 2 Heat Flow Errors 3 | . 2 1 . Energy Discharges 3 | . 1 2 . Data Loss (minor) 3 | . 1 1 1 Data Loss (major) 3 | . 2 1 . Misfires 1 | . . . 1 Alerts 1 | . 1 . . Overload Shots . | . . . . Overflow Damage 2 | . 2 . . Projectiles . | . . . . Explosions 2 | . 2 . . Melee . | . . . . Knockbacks . | . . . . Impact . | . . . . Kinetic . | . . . . Secondary . | . . . . Self-Inflicted Damage 61 | . 61 . . Shots 2 | . 2 . . Rammed . | . . . . Targets Rammed 5 | . 3 2 . Kicked 5 | . 3 2 . Crushed . | . . . . Highest Temperature 248 | . 160 248 . Average Temperature 47 | . 43 69 . Received Heat Transfer 276 | . 159 117 . Siege Activations . | . . . . Robots Corrupted . | . . . . Combat Hostiles . | . . . . Parts Fried . | . . . . Impact Corruptions . | . . . . Robots Melted . | . . . . Combat Hostiles . | . . . . Parts Melted 3 | . 3 . . Heat Transferred 1271 | . 1271 . . Parts Sabotaged . | . . . . Parts Stolen . | . . . . Parts Stripped . | . . . . Power Chain Reactions 1 | . 1 . . Alert | -11 -10 -10 -10 ------- Run | Yrd Mat Min Exi Peak Influence 195 | . 195 163 . Initial 3 | . . 3 . Average 44 | . 42 50 . Maximum Alert Level . | . . . . Low Security (%) 100 | 100 100 100 . Level 1 . | . . . . Level 2 . | . . . . Level 3 . | . . . . Level 4 . | . . . . Level 5 . | . . . . High Security . | . . . . Max Security . | . . . . Squads Dispatched 2 | . 2 . . Investigation 1 | . 1 . . Extermination . | . . . . Reinforcement 1 | . 1 . . Assault . | . . . . Garrison . | . . . . Intercept . | . . . . Searches Triggered . | . . . . Construction Impeded . | . . . . Haulers Reinforced . | . . . . Active Scanning Responses . | . . . . Cargo Convoy Interrupts . | . . . . Stealth | -11 -10 -10 -10 --------- Run | Yrd Mat Min Exi Distress Signals 1 | . 1 . . Communications Jammed . | . . . . Distress Signals . | . . . . Times Spotted 39 | . 21 10 8 Peak Tracking Total 10 | . 3 3 10 Tactical Retreats 4 | . 2 2 . Traps | -11 -10 -10 -10 ------- Run | Yrd Mat Min Exi Traps Triggered 2 | . 2 . . Indirectly . | . . . . Trap Hack Attempts . | . . . . Triggered . | . . . . Disarmed . | . . . . Reprogrammed . | . . . . Reused . | . . . . Traps Extracted . | . . . . Installed . | . . . . Triggered . | . . . . Machines | -11 -10 -10 -10 ---------- Run | Yrd Mat Min Exi Machines Disabled 2 | . 2 . . Max in Single Turn 2 | . 2 . . Machines Repaired . | . . . . Machines Dismantled . | . . . . Machines Sabotaged . | . . . . Overloaded Fab Kills . | . . . . Hacking | -11 -10 -10 -10 --------- Run | Yrd Mat Min Exi Machines Accessed 9 | . 9 . . Terminals 6 | . 6 . . Fabricators . | . . . . Repair Stations 1 | . 1 . . Recycling Units 2 | . 2 . . Scanalyzers . | . . . . Garrison Access . | . . . . Total Hacks 21 | . 21 . . Successful 12 | . 12 . . Failed 8 | . 8 . . Catastrophic 1 | . 1 . . Database Lockouts 1 | . 1 . . Manual 12 | . 12 . . Terminals 16 | . 16 . . Fabricators . | . . . . Repair Stations 2 | . 2 . . Recycling Units 3 | . 3 . . Scanalyzers . | . . . . Garrison Access . | . . . . Terminal Hacks 4 | . 4 . . Robot Analysis 1 | . 1 . . Prototype ID Bank 1 | . 1 . . Unreport Threat 1 | . 1 . . Hauler Manifests 1 | . 1 . . Fabricator Hacks . | . . . . Repair Station Hacks 2 | . 2 . . Scan Component 1 | . 1 . . Repair 1 | . 1 . . Recycling Unit Hacks 2 | . 2 . . Retrieve Components 2 | . 2 . . Scanalyzer . | . . . . Garrison Access Hacks . | . . . . Unauthorized Hacks 4 | . 4 . . Terminals 4 | . 4 . . Botnet 4 | . 4 . . Fabricators . | . . . . Repair Stations . | . . . . Recycling Units . | . . . . Scanalyzers . | . . . . Garrison Access . | . . . . Data Cores Recovered . | . . . . Used . | . . . . Hacking Detections 7 | . 7 . . Full Trace Events . | . . . . Feedback Events . | . . . . Feedback Blocked . | . . . . Robot Schematics Acquired . | . . . . Robots Built . | . . . . Authchips . | . . . . Time . | . . . . Total Robot Build Rating . | . . . . Part Schematics Acquired . | . . . . Parts Built . | . . . . Authchips . | . . . . Time . | . . . . Total Part Build Rating . | . . . . Parts Repaired 1 | . 1 . . Time 26 | . 26 . . Parts Recycled . | . . . . Recycled Matter . | . . . . Retrieved Matter . | . . . . Retrieved Components 10 | . 10 . . Parts Scanalyzed . | . . . . Part Schematics Acquired . | . . . . Parts Damaged . | . . . . Bothacking | -11 -10 -10 -10 ------------ Run | Yrd Mat Min Exi Used RIF Installer . | . . . . Robots Hacked . | . . . . Non-combat . | . . . . Combat . | . . . . Robot Hacks Applied . | . . . . Relay Couplers Released . | . . . . Fabnet Peak Effective % . | . . . . Robots Rewired . | . . . . Allies Hacked . | . . . . Hacks Repelled . | . . . . Allies | -11 -10 -10 -10 -------- Run | Yrd Mat Min Exi Total Allies . | . . . . Largest Group . | . . . . Highest-Rated Group . | . . . . Highest-Rated Ally . | . . . . Total Orders . | . . . . Ally Attacks . | . . . . Total Damage . | . . . . Kills . | . . . . Allies Corrupted . | . . . . Allies Melted . | . . . . Intel | -11 -10 -10 -10 ------- Run | Yrd Mat Min Exi Robot Analysis Total 1 | . 1 . . Derelict Logs Recovered . | . . . . Drone Launches . | . . . . Drone Recoveries . | . . . . Exploration | -11 -10 -10 -10 ------------- Run | Yrd Mat Min Exi Turns Passed 3678 | 75 2491 952 160 Spaces Moved 1354 | 51 901 341 61 Core 21 | 21 . . . Treads . | . . . . Legs 1333 | 30 901 341 61 Wheels . | . . . . Hover . | . . . . Flight . | . . . . Fastest Speed 50 | 50 120 260 260 Average Speed 246 | 123 247 260 263 Slowest Speed 470 | 250 260 260 470 Overloaded Moves . | . . . . Propulsion Burnouts . | . . . . Robots Hopped . | . . . . Cave-ins Triggered . | . . . . Exploration Rate (%) 41 | 5 89 49 24 Regions Visited 3 Branch Regions 2 Pre-discovered Areas . | . . . . Known Exits Taken . | . . . . Unknown Exits Taken 3 | 1 1 1 . Scrap Searched . | . . . . Spaces Dug . | . . . . Terrain Destroyed 22 | . 22 . . Melee . | . . . . Projectile . | . . . . AOE 22 | . 22 . . Terrain Rammed . | . . . . Walls Destroyed . | . . . . Machines Disabled . | . . . . Actions | -11 -10 -10 -10 --------- Run | Yrd Mat Min Exi Total 1568 | 60 1066 381 61 Wait 83 | . 80 3 . Move 1351 | 50 900 340 61 Hop . | . . . . Pick Up 25 | 4 14 7 . Fast Attach 10 | 6 3 1 . Attach 5 | . 2 3 . Detach . | . . . . Swap 14 | . 12 2 . Drop 13 | . 7 6 . Fire 62 | . 45 17 . Melee . | . . . . Ram . | . . . . Kick 5 | . 3 2 . Crush . | . . . . Escape Stasis . | . . . . Rewire . | . . . . Trap . | . . . . Miscellaneous . | . . . . Route ------- -11/Scrapyard -10/Materials (discovered 3 exits: [*Mat x2] / [*Min]) -10/Mines (discovered 2 exits: [*Mat] / [*Exi]) -10/Exiles History --------- Turn | Location | Event 28 | -11/Scrapyard | Discovered new exit (range 14) 76 | -11/Scrapyard | Entered Materials 309 | -10/Materials | Build established: Mutant 532 | -10/Materials | Discovered new exit (range 13) 1128 | -10/Materials | Discovered new exit (range 6) 1130 | -10/Materials | Build established: Scavenger-Mutant 1324 | -10/Materials | Central database locked down 1414 | -10/Materials | Discovered new exit (range 9) 1896 | -10/Materials | Build established: Mutant 1993 | -10/Materials | Repaired Assault Rifle 2567 | -10/Materials | Entered Mines 2906 | -10/Mines | Discovered new exit (range 5) 3113 | -10/Mines | Deemed a non-threat by the Exiles lab entrance 3113 | -10/Mines | Discovered new exit (range 6) 3241 | -10/Mines | Core integrity fell below 50% 3269 | -10/Mines | Lost 3 parts (1p2w) 3519 | -10/Mines | Entered Exiles 3584 | -10/Exiles | Met 8R-AWN 3631 | -10/Exiles | Met EX-HEX 3669 | -10/Exiles | Attacked by the Exiles 3677 | -10/Exiles | Core integrity fell below 20% 3679 | -10/Exiles | Destroyed by as-57013 with Assembled Maul Last Messages --------------- Nope, the Imprinter put them there mostly to keep us out! Anyway, I've got to get back to poking and prodding these nasty little guys. Go see BIN. I can't imagine you'll want to stay in our boring little cave for long, and we could use some help with the project in the back. 03634_ System corrupted: Component data lost. 03669_ System corrupted: FCS attempts to trigger Hvy. Assault Rifle. 03669_ System corrupted: Hvy. Assault Rifle misfires. 03669_ EXILES: Hostile robot within lab perimeter. Defensive protocols time, folks! 03669_ Machine disabled. 03675_ Aluminum Leg destroyed. 03677_ Penetrated by HV Slug. 03677_ HV Slug penetrates as-85374. 03677_ as-01623 destroyed. 03678_ Aluminum Leg destroyed. Map ----- +----------------------------------------------------+ | ?????????????????????????????????????????????????? | | ?????????????????????????????????????????????????? | | ?????????????????????????????????????????????????? | | ?????????????????????????????????????????????????? | | ?????????????????????????????????????????????????? | | ?????????????????????????????????????????????????? | | ?????????????????????????????????????????????????? | | ?????????????????????????????????????????????????? | | ?????????????????????????????????????????????????? | | ?????????????????????????????????????????????????? | | ?????????????????????????????????????????????????? | | ?????????????????????????????????????????????????? | | ?????????????????????????????????????????????????? | | ????????????? ##???????????????????????????????? | | ????????????? ###??#############???????????????? | | ???????????? ##################??????????????? | | ???????????? #####"""""""""####?????????????? | | ??????????? " """ """"###?????????????? | | ??????????? "" " ##?????????????? | | ??????????? """##?????????##### | | ?????????? "a"###???????###### | | ?????????? " "#####?????###" | | ?????????? ""####????###" | | ????????????"" """##??#####" | | ?????????????""" "###?#### | | ???????????????##""" a@a ###### | | ???????????????###""" a ##### | | ???????????????###"""" ### | | ????????????????##"" ## | | ????????????????#""""c #### | | ????????????????? ""###" | | ??????????????? z #"""##### | | ??????????????? ########## | | ??????????????? ########??? | | ??????????????? " % ####???????? | | ????????????? "" """aa ""###????????? | | ????????????? ##""" " " ""#" a "###?????????? | | ????????????? ##?###""" """##"""""""####?????????? | | ?????????????????#####"""?#############??????????? | | ????????????????????#####??###########???????????? | | ??????????????????????###????????????????????????? | | ?????????????????????????????????????????????????? | | ?????????????????????????????????????????????????? | | ?????????????????????????????????????????????????? | | ?????????????????????????????????????????????????? | | ?????????????????????????????????????????????????? | | ?????????????????????????????????????????????????? | | ?????????????????????????????????????????????????? | | ?????????????????????????????????????????????????? | | ?????????????????????????????????????????????????? | +----------------------------------------------------+ Best States ------------- Heat Dissipation 25 Energy Generation 12 Energy Capacity 265 Matter Stores 300 Matter Capacity 300 Sight Range 16 Terrain Scan Density 10 Evasion (%) 55 Item Schematics ----------------- None Robot Schematics ------------------ None Fabricated ------------ Nothing Alien Tech Used ----------------- None Achievements -------------- None Challenges ------------ None Game ------ Seed MagneticCombatSpiker Manual? 0 Play Time 00:13:21 Cumulative 41.2 hours Start 2024.09.17 @ 17:17:27 End 2024.09.17 @ 17:30:18 Sessions 1 Manual Loads 0 Difficulty Rogue Special Mode None Game No. 78 Rogue 78 Adventurer 0 Explorer 0 Win Type - Total 0 Types 0/0/0/0/0/0/0/0/0 Lore% 15 Gallery% 34 Achievement% 30 Wizard Run 0 Options --------- Layout 1 ASCII 0 Keyboard 0 Movement Numpad Keybinds 0 Fullscreen 1 Font 24/Smallcaps Map View 50x35 Zoom Use 0% Tactical HUD 1 Map Filters NONE Filters NONE Steam 1 RUN: 6a0bbcaf-9758-4d5e-873d-10c5281103fd